bitfinex/quotes_BTCUSD_20250204
["timestamp","ask_amount","ask_price","bid_price","bid_amount"]
[1738695420930,1.5,99393.0,99388.0,0.150923]
[1738695421108,0.076,99394.0,99385.0,0.201236]
[1738695421326,0.076,99394.0,99393.0,0.150916]
[1738695421526,0.076,99394.0,99393.0,0.25330106]
[1738695422148,0.0477,99396.0,99395.0,0.150913]
[1738695422351,0.0477,99396.0,99395.0,0.25450522]
[1738695422580,0.0477,99396.0,99395.0,0.25329806]
[1738695422794,0.0477,99396.0,99395.0,0.09643655]
[1738695422955,0.0477,99396.0,99383.0,0.201239]
[1738695422956,0.0477,99396.0,99384.0,0.201239]
[1738695423172,0.0477,99396.0,99385.0,0.13341122]
[1738695423390,0.0477,99396.0,99391.0,0.150917]
[1738695423564,0.0477,99396.0,99392.0,0.10238506]
[1738695423990,0.0477,99396.0,99392.0,0.25330106]
[1738695424350,0.0477,99396.0,99393.0,0.150915]
[1738695424564,0.08,99395.0,99386.0,0.150925]
[1738695424781,0.08,99395.0,99388.0,0.201231]
[1738695425006,1.5,99394.0,99391.0,0.150918]
[1738695425221,1.5,99394.0,99389.0,0.150921]
[1738695425637,1.5,99394.0,99390.0,0.15092]
[1738695426072,1.5,99394.0,99388.0,0.150922]
[1738695426232,0.08,99395.0,99387.0,0.10238506]
[1738695426435,0.08,99395.0,99388.0,0.150923]
[1738695426644,1.58,99395.0,99389.0,0.150921]
[1738695428225,0.08,99395.0,99389.0,0.150921]
[1738695428438,0.08,99395.0,99388.0,0.150923]
[1738695428874,0.08,99395.0,99387.0,0.30361706]
[1738695428875,0.08,99395.0,99389.0,0.150921]
[1738695429858,0.0801067,99395.0,99391.0,0.150918]
[1738695430381,0.0801067,99395.0,99389.0,0.150921]
[1738695430576,0.0801067,99395.0,99388.0,0.201229]
[1738695430776,0.0801067,99395.0,99390.0,0.150919]
[1738695431477,0.0801067,99395.0,99388.0,0.201229]
[1738695431893,0.0801067,99395.0,99389.0,0.150922]
[1738695432327,0.0801067,99395.0,99388.0,0.201229]
[1738695432545,0.0801067,99395.0,99390.0,0.150919]
[1738695433395,0.0801067,99395.0,99389.0,0.201229]
[1738695433622,0.0801067,99395.0,99392.0,0.150917]
[1738695433822,0.0801067,99395.0,99390.0,0.150919]
[1738695434153,0.0801067,99395.0,99390.0,0.15092]
[1738695435191,0.0801067,99395.0,99387.0,0.10260913]
[1738695435503,0.0801067,99395.0,99388.0,0.150923]
[1738695436149,0.0801067,99395.0,99387.0,0.10260913]
[1738695436556,0.0801067,99395.0,99389.0,0.150921]
[1738695437078,0.0801067,99395.0,99387.0,0.10260913]
[1738695437287,0.0801067,99395.0,99388.0,0.150923]
[1738695437522,0.0801067,99395.0,99392.0,0.150917]
[1738695437721,0.0001067,99395.0,99394.0,0.300914]
[1738695437926,0.00022428,99407.0,99395.0,0.2299]
[1738695438067,0.00022428,99407.0,99406.0,0.300896]
[1738695438274,0.00022428,99407.0,99406.0,0.43427678]
[1738695439314,0.00022428,99407.0,99406.0,0.40328106]
[1738695441808,0.00022428,99407.0,99406.0,0.41329676]
[1738695445449,0.00022428,99407.0,99406.0,0.44426369]
[1738695446271,0.00022428,99407.0,99406.0,0.41329676]
[1738695446467,0.00022428,99407.0,99406.0,0.44426536]
[1738695447193,0.00022428,99407.0,99406.0,0.41329676]
[1738695447674,0.00022428,99407.0,99406.0,0.44426645]
[1738695453743,0.00022428,99407.0,99406.0,0.29426645]
[1738695453904,0.00022428,99407.0,99406.0,0.26329676]
[1738695454109,0.00022428,99407.0,99406.0,0.11240076]
[1738695454474,0.00022428,99407.0,99406.0,0.0100157]
[1738695454607,0.00022428,99407.0,99402.0,0.02044984]
[1738695454808,0.00022428,99407.0,99404.0,0.15]
[1738695455035,0.00022428,99407.0,99405.0,0.10238506]
[1738695461742,0.00022428,99407.0,99405.0,0.10359207]
[1738695462783,0.00022428,99407.0,99406.0,0.15210301]
[1738695462988,0.00022428,99407.0,99406.0,0.25448807]
[1738695463169,0.00022428,99407.0,99406.0,0.25328106]
[1738695463307,0.00022428,99407.0,99406.0,0.10238506]
[1738695463510,0.00022428,99407.0,99406.0,0.10359206]
[1738695464544,0.00022428,99407.0,99406.0,0.10238506]
[1738695466296,0.07742428,99407.0,99401.0,0.02014093]
[1738695466534,0.0471,99406.0,99383.0,0.00120723]
[1738695466660,0.0471,99406.0,99390.0,0.09881357]
[1738695466661,0.3294,99405.0,99390.0,0.09881357]
[1738695466883,1.5,99404.0,99391.0,0.00120717]
[1738695467254,1.5,99404.0,99391.0,0.15212517]
[1738695467658,0.150903,99402.0,99391.0,0.00120717]
[1738695467885,0.150903,99402.0,99390.0,0.09881357]
[1738695468210,0.3294,99405.0,99390.0,0.25094076]
[1738695468406,1.8294,99405.0,99391.0,0.00120717]
[1738695468712,0.150902,99402.0,99391.0,0.00120717]
[1738695468869,2.030598,99405.0,99391.0,0.00120717]
[1738695469075,1.8294,99405.0,99391.0,0.00120717]
[1738695469282,0.201199,99404.0,99391.0,0.00120717]
[1738695470340,0.150903,99402.0,99391.0,0.00120717]
[1738695470537,0.3294,99405.0,99390.0,0.09881357]
[1738695470538,0.150904,99401.0,99390.0,0.09881357]
[1738695471565,0.3294,99405.0,99388.0,0.00022428]
[1738695471788,0.150911,99396.0,99388.0,0.00022428]
[1738695471998,0.234111,99396.0,99388.0,0.00022428]
[1738695472197,0.563511,99396.0,99388.0,0.00022428]
[1738695473035,0.4126,99396.0,99388.0,0.00022428]
[1738695475937,0.3294,99396.0,99388.0,0.00143155]
[1738695476078,0.3294,99396.0,99390.0,0.150919]
[1738695476284,0.3294,99396.0,99389.0,0.150922]
[1738695476733,0.3294,99396.0,99388.0,0.20145328]
[1738695478137,0.3294,99396.0,99388.0,0.15114628]
[1738695480152,0.3294,99396.0,99388.0,0.00022428]
[1738695480415,0.3294,99396.0,99389.0,0.150921]
[1738695480769,0.3294,99396.0,99388.0,0.00022428]
[1738695480994,0.3294,99396.0,99395.0,0.25352234]
[1738695481640,0.0001068,99406.0,99405.0,0.150897]
[1738695481799,0.0001068,99406.0,99405.0,0.25328206]
[1738695482133,0.0001068,99406.0,99405.0,0.10238506]
[1738695482313,0.0001068,99406.0,99405.0,0.25328206]
[1738695482675,0.0001068,99406.0,99405.0,0.41338749]
[1738695483119,0.0001068,99406.0,99405.0,0.44439167]
[1738695487025,0.0001068,99406.0,99405.0,0.46417719]
[1738695490041,0.0001068,99406.0,99405.0,0.29349467]
[1738695490459,0.0001068,99406.0,99405.0,0.44439167]
[1738695492183,0.0001068,99406.0,99405.0,0.29349467]
[1738695492393,0.0001068,99406.0,99405.0,0.15]
[1738695492608,0.0001068,99406.0,99401.0,0.01012905]
[1738695493046,0.0001068,99406.0,99394.0,0.15]
[1738695493245,0.0001068,99406.0,99395.0,0.01033487]
[1738695493661,0.0001068,99406.0,99395.0,0.00022428]
[1738695493842,0.3294,99405.0,99395.0,0.00022428]
[1738695496829,1.97852404,99404.0,99395.0,0.00022428]
[1738695497008,0.150904,99401.0,99395.0,0.00022428]
[1738695497514,0.150906,99400.0,99395.0,0.00022428]
[1738695497897,2.1138,99404.0,99395.0,0.00022428]
[1738695498096,0.150904,99401.0,99395.0,0.00022428]
[1738695498468,0.150906,99400.0,99395.0,0.00022428]
[1738695498781,0.150903,99401.0,99395.0,0.00022428]
[1738695498984,0.201204,99402.0,99395.0,0.00022428]
[1738695499345,0.150906,99400.0,99395.0,0.00022428]
[1738695499523,1.9126,99404.0,99395.0,0.00022428]
[1738695499658,0.201205,99402.0,99395.0,0.00022428]
[1738695500060,0.3294,99403.0,99395.0,0.00022428]
[1738695500316,0.150911,99396.0,99395.0,0.00022428]
[1738695500717,0.150908,99398.0,99395.0,0.00022428]
[1738695500916,0.15091,99397.0,99395.0,0.00022428]
[1738695502335,0.201209,99399.0,99395.0,0.00022428]
[1738695502336,0.352117,99399.0,99395.0,0.00022428]
[1738695502691,0.150908,99399.0,99395.0,0.00022428]
[1738695502890,0.150911,99396.0,99395.0,0.00022428]
[1738695503570,0.3294,99396.0,99395.0,0.10260934]
[1738695503722,0.3294,99396.0,99395.0,0.25352234]
[1738695504266,0.3294,99396.0,99395.0,0.28452216]
[1738695504423,0.3294,99396.0,99395.0,0.29482622]
[1738695504621,0.3294,99396.0,99395.0,0.04152816]
[1738695504822,0.3294,99396.0,99395.0,0.01052834]
[1738695509254,0.3294,99396.0,99395.0,0.16144134]
[1738695509420,0.3294,99396.0,99395.0,0.01052834]
[1738695512259,0.3294,99396.0,99395.0,0.00022428]
[1738695513257,0.4066,99396.0,99395.0,0.00022428]
[1738695515430,0.4067068,99396.0,99395.0,0.00022428]
[1738695517954,0.5576178,99396.0,99395.0,0.00022428]
[1738695518155,0.88080286,99396.0,99395.0,0.00022428]
[1738695518720,2.38080286,99396.0,99395.0,0.00022428]
[1738695519249,2.40107112,99396.0,99395.0,0.00022428]
[1738695523980,0.90107112,99396.0,99395.0,0.00022428]
[1738695524179,1.00356584,99396.0,99395.0,0.00022428]
[1738695524700,2.50356584,99396.0,99395.0,0.00022428]
[1738695527006,2.40107112,99396.0,99395.0,0.00022428]
[1738695527632,0.90107112,99396.0,99395.0,0.00022428]
[1738695528032,2.40107112,99396.0,99395.0,0.00022428]
[1738695529846,0.86524286,99396.0,99395.0,0.00022428]
[1738695530229,0.88824286,99396.0,99395.0,0.00022428]
[1738695530431,2.38824286,99396.0,99395.0,0.00022428]
[1738695530648,2.49073758,99396.0,99395.0,0.00022428]
[1738695531872,2.38824286,99396.0,99395.0,0.00022428]
[1738695533341,0.88824286,99396.0,99395.0,0.00022428]
[1738695533758,0.88080286,99396.0,99395.0,0.00022428]
[1738695533947,2.38824286,99396.0,99395.0,0.00022428]
[1738695534534,0.88824286,99396.0,99395.0,0.00022428]
[1738695534737,0.94546055,99396.0,99395.0,0.00022428]
[1738695534944,0.95290055,99396.0,99395.0,0.00022428]
[1738695535185,0.88824286,99396.0,99395.0,0.00022428]
[1738695536318,0.6054178,99396.0,99395.0,0.00022428]
[1738695536521,0.5356578,99396.0,99395.0,0.00022428]
[1738695539872,2.0356578,99396.0,99395.0,0.00022428]
[1738695540291,1.9878578,99396.0,99395.0,0.00022428]
[1738695542405,1.9804178,99396.0,99395.0,0.00022428]
[1738695542849,0.4804178,99396.0,99395.0,0.00022428]
[1738695543256,1.9804178,99396.0,99395.0,0.00022428]
[1738695545753,1.8295068,99396.0,99395.0,0.00022428]
[1738695545957,1.9804178,99396.0,99395.0,0.00022428]
[1738695547697,1.8295068,99396.0,99395.0,0.00022428]
[1738695549612,0.3295068,99396.0,99395.0,0.00022428]
[1738695556515,0.3295068,99396.0,99395.0,0.38260497]
[1738695557938,0.0001068,99396.0,99395.0,0.39276509]
[1738695559071,0.0001068,99396.0,99395.0,0.44116509]
[1738695559470,0.0001068,99396.0,99395.0,0.41009123]
[1738695561918,0.0001068,99396.0,99395.0,0.38998246]
[1738695562102,0.0001068,99396.0,99395.0,0.34158246]
[1738695575028,0.0001068,99396.0,99395.0,0.26368246]
[1738695579558,0.0001068,99396.0,99395.0,0.29471626]
[1738695583474,0.0001068,99396.0,99395.0,0.25352234]
[1738695583901,0.0001068,99396.0,99395.0,0.15113728]
[1738695585315,0.0001068,99396.0,99395.0,0.00022428]
[1738695586649,0.0001068,99396.0,99395.0,0.15113728]
[1738695587413,0.0001068,99396.0,99395.0,0.18224825]
[1738695591447,0.0001068,99396.0,99395.0,0.28463331]
[1738695601836,0.0001068,99396.0,99395.0,0.36513331]
[1738695602515,0.0001068,99396.0,99395.0,0.28463331]
[1738695604086,0.0001068,99396.0,99395.0,0.03133525]
[1738695604313,0.0001068,99396.0,99395.0,0.18224825]
[1738695611806,0.0001068,99396.0,99395.0,0.28463331]
[1738695612007,0.0001068,99396.0,99395.0,0.36783331]
[1738695617644,0.3295068,99396.0,99395.0,0.03133525]
[1738695617883,0.59316848,99396.0,99395.0,0.00022428]
[1738695618211,2.0555178,99396.0,99395.0,0.00022428]
[1738695618328,2.31534286,99396.0,99395.0,0.00022428]
[1738695620063,2.31834286,99396.0,99395.0,0.00022428]
[1738695620635,2.31934286,99396.0,99395.0,0.00022428]
[1738695620860,2.31634286,99396.0,99395.0,0.00022428]
[1738695621348,2.32034286,99396.0,99395.0,0.00022428]
[1738695622128,2.34334286,99396.0,99395.0,0.00022428]
[1738695622447,2.49003758,99396.0,99395.0,0.00022428]
[1738695622800,2.49103758,99396.0,99395.0,0.00022428]
[1738695623005,2.38854286,99396.0,99395.0,0.00022428]
[1738695626137,0.150923,99388.0,99387.0,0.16351147]
[1738695626395,0.55220806,99388.0,99387.0,0.16351147]
[1738695626781,2.05220806,99388.0,99387.0,0.16351147]
[1738695626978,2.15470278,99388.0,99387.0,0.16351147]
[1738695627175,2.15570278,99388.0,99387.0,0.16351147]
[1738695627819,2.05320806,99388.0,99387.0,0.16351147]
[1738695628377,2.07358235,99388.0,99387.0,0.16351147]
[1738695628566,2.05320806,99388.0,99387.0,0.16351147]
[1738695629527,2.06320806,99388.0,99387.0,0.16351147]
[1738695629920,2.07315358,99388.0,99387.0,0.16351147]
[1738695630133,2.07315358,99388.0,99343.0,0.08059438]
[1738695630134,0.15099,99344.0,99343.0,0.08059438]
[1738695630343,0.48039,99344.0,99343.0,0.08073437]
[1738695630545,0.3294,99344.0,99343.0,0.00013999]
[1738695630916,1.8294,99344.0,99343.0,0.15113199]
[1738695631091,0.3294,99344.0,99343.0,0.15113199]
[1738695633082,0.3294,99344.0,99343.0,0.15213199]
[1738695633356,0.3294,99344.0,99343.0,0.00113999]
[1738695633857,0.48039,99344.0,99343.0,0.00113999]
[1738695634402,1.98039,99344.0,99343.0,0.00113999]
[1738695634994,0.3294,99344.0,99343.0,0.00113999]
[1738695635757,0.3294,99344.0,99343.0,0.15213199]
[1738695638005,0.3294,99344.0,99343.0,0.00113999]
[1738695639595,0.48039,99344.0,99343.0,0.00113999]
[1738695640852,0.3294,99344.0,99343.0,0.00113999]
[1738695642149,0.3294,99344.0,99343.0,0.00136427]
[1738695643092,0.48039,99344.0,99343.0,0.00136427]
[1738695643320,0.3294,99344.0,99343.0,0.00136427]
[1738695643472,0.3294,99344.0,99343.0,0.00036427]
[1738695643637,0.3294,99344.0,99343.0,0.00136427]
[1738695643837,0.3294,99344.0,99343.0,0.15235627]
[1738695644074,0.3294,99344.0,99343.0,0.00136427]
[1738695645803,0.3294,99344.0,99343.0,0.15235627]
[1738695646135,0.3294,99344.0,99343.0,0.00136427]
[1738695648799,0.3975692,99344.0,99343.0,0.00136427]
[1738695649001,0.55929,99344.0,99343.0,0.00136427]
[1738695649236,0.88177506,99344.0,99343.0,0.00136427]
[1738695649640,2.38177506,99344.0,99343.0,0.00136427]
[1738695650040,2.38177506,99344.0,99343.0,0.00036427]
[1738695650271,2.48426978,99344.0,99343.0,0.00136427]
[1738695650634,2.38177506,99344.0,99343.0,0.00136427]
[1738695651062,2.3920483,99344.0,99343.0,0.00136427]
[1738695651262,2.11666324,99344.0,99343.0,0.00136427]
[1738695651459,1.98039,99344.0,99343.0,0.00136427]
[1738695652092,0.3294,99344.0,99343.0,0.00136427]
[1738695652413,0.3294,99344.0,99343.0,0.15235627]
[1738695653149,0.3294,99344.0,99343.0,0.15135627]
[1738695653401,0.3294,99344.0,99343.0,0.15235627]
[1738695653603,0.3294,99344.0,99343.0,0.15135627]
[1738695654005,0.3294,99344.0,99343.0,0.15235627]
[1738695654737,0.3294,99344.0,99343.0,0.00136427]
[1738695656169,1.8294,99344.0,99343.0,0.00136427]
[1738695658527,1.8294,99344.0,99343.0,0.15235627]
[1738695662217,0.3294,99344.0,99343.0,0.15235627]
[1738695662377,0.3294,99344.0,99343.0,0.28592717]
[1738695662703,1.5,99367.0,99343.0,0.13493517]
[1738695662920,0.3294,99366.0,99365.0,0.150958]
[1738695663870,0.3294,99366.0,99365.0,0.24091672]
[1738695664126,0.3294,99366.0,99365.0,0.27206796]
[1738695664367,1.5,99388.0,99366.0,0.201276]
[1738695664368,0.3294,99386.0,99366.0,0.201276]
[1738695664564,0.3294,99386.0,99385.0,0.150928]
[1738695665094,0.3294,99400.0,99385.0,0.25331306]
[1738695665281,1.5,99399.0,99386.0,0.10238506]
[1738695665485,1.5,99399.0,99386.0,0.10359236]
[1738695665688,1.5,99399.0,99386.0,0.10238506]
[1738695665897,1.5,99399.0,99386.0,0.28439047]
[1738695666508,0.3294,99400.0,99386.0,0.25331106]
[1738695667311,0.3294,99400.0,99386.0,0.40331106]
[1738695667716,0.3294,99400.0,99386.0,0.43431805]
[1738695668325,0.3294,99400.0,99386.0,0.40331106]
[1738695668730,0.3294,99400.0,99386.0,0.47831106]
[1738695669130,0.0001068,99406.0,99386.0,0.47831106]
[1738695677183,0.0001068,99406.0,99386.0,0.48831106]
[1738695677437,0.0001068,99406.0,99395.0,0.300913]
[1738695677684,0.0001068,99406.0,99395.0,0.44929806]
[1738695678847,8e-07,99396.0,99395.0,0.53119806]
[1738695678980,8e-07,99404.0,99403.0,0.3009]
[1738695679184,8e-07,99404.0,99403.0,0.40328506]
[1738695679392,0.3294,99436.0,99409.0,0.01]
[1738695679689,0.00036445,99410.0,99409.0,0.41448284]
[1738695680008,0.00036445,99410.0,99409.0,0.41327606]
[1738695680799,0.00036445,99410.0,99409.0,0.40327606]
[1738695682005,0.00036445,99410.0,99409.0,0.25327606]
[1738695682897,0.00036445,99410.0,99409.0,0.26338019]
[1738695686357,0.00036445,99410.0,99409.0,0.41338019]
[1738695687833,0.00036445,99410.0,99409.0,0.44301127]
[1738695691718,0.3294,99440.0,99436.0,0.15085]
[1738695691920,0.3294,99440.0,99436.0,0.25323506]
[1738695692163,0.3294,99440.0,99439.0,0.150846]
[1738695692473,0.32954015,99440.0,99439.0,0.150846]
[1738695693634,0.32954015,99440.0,99439.0,0.25323106]
[1738695693840,0.32954015,99440.0,99439.0,0.28286214]
[1738695695078,0.00014015,99440.0,99439.0,0.28286214]
[1738695696855,0.00014015,99440.0,99439.0,0.3138314]
[1738695702470,0.00024695,99440.0,99439.0,0.3138314]
[1738695704716,0.00024695,99440.0,99439.0,0.28286214]
[1738695704907,0.00024695,99440.0,99439.0,0.18047708]
[1738695706173,0.00024695,99440.0,99439.0,0.150846]
[1738695708418,0.00024695,99440.0,99439.0,0.25323106]
[1738695710318,0.00024695,99440.0,99439.0,0.28428992]
[1738695716271,0.00024695,99440.0,99439.0,0.43428992]
[1738695716954,0.0001068,99444.0,99439.0,0.43428992]
[1738695716955,5e-08,99444.0,99440.0,0.300844]
[1738695717159,0.3294,99477.0,99450.0,0.300829]
[1738695717376,5e-07,99451.0,99450.0,0.52941406]
[1738695717587,5.6e-07,99451.0,99450.0,0.57047292]
[1738695718138,0.00018506,99456.0,99452.0,0.01]
[1738695718344,0.00025549,99456.0,99455.0,0.40320606]
[1738695718564,0.00025549,99456.0,99455.0,0.43426492]
[1738695718730,0.00025549,99456.0,99455.0,0.43786351]
[1738695718932,0.00025549,99456.0,99455.0,0.43426492]
[1738695719570,0.00025549,99456.0,99455.0,0.40320606]
[1738695719966,0.00025549,99456.0,99455.0,0.41338453]
[1738695720394,0.00025549,99456.0,99455.0,0.26338453]
[1738695721815,0.00025549,99456.0,99455.0,0.4444444]
[1738695723083,1e-08,99456.0,99455.0,0.4444444]
[1738695727357,0.00010681,99456.0,99455.0,0.4444444]
[1738695731168,0.00010681,99456.0,99455.0,0.41338453]
[1738695732011,0.00010681,99456.0,99455.0,0.01017847]
[1738695732246,0.00010681,99456.0,99445.0,0.02012019]
[1738695732453,0.00010681,99456.0,99455.0,0.150821]
[1738695732658,0.00010681,99456.0,99455.0,0.2544126]
[1738695732912,0.00010681,99456.0,99455.0,0.25320606]
[1738695734381,0.00010681,99456.0,99455.0,0.26343828]
[1738695736731,0.00010681,99456.0,99455.0,0.41343828]
[1738695736920,0.00010681,99456.0,99455.0,0.44447328]
[1738695737111,0.00010681,99456.0,99455.0,0.41343828]
[1738695738950,0.00010681,99456.0,99455.0,0.41366256]
[1738695742697,0.00010681,99456.0,99455.0,0.3112775]
[1738695745066,0.00010681,99456.0,99455.0,0.1612775]
[1738695745302,0.00010681,99456.0,99455.0,0.26366256]
[1738695745658,0.00010681,99456.0,99455.0,0.44472942]
[1738695748336,0.00010681,99456.0,99455.0,0.49152942]
[1738695748549,8.1e-07,99456.0,99455.0,0.49152942]
[1738695748749,8.1e-07,99456.0,99455.0,0.57312942]
[1738695751506,8.1e-07,99456.0,99455.0,0.44472942]
[1738695754515,8e-07,99480.0,99479.0,0.425085]
[1738695754721,0.006,99500.0,99495.0,0.300761]
[1738695754924,0.006,99500.0,99499.0,0.300755]
[1738695755139,0.006,99500.0,99499.0,0.43420692]
[1738695755549,0.00614005,99500.0,99499.0,0.43420692]
[1738695759664,0.0001068,99510.0,99509.0,0.30074]
[1738695759665,8.5e-07,99510.0,99509.0,0.30074]
[1738695759880,8.5e-07,99510.0,99509.0,0.43419192]
[1738695763468,8.5e-07,99510.0,99509.0,0.50989192]
[1738695764033,8.5e-07,99510.0,99509.0,0.54181326]
[1738695764233,0.0756,99553.0,99539.0,0.150694]
[1738695764492,0.00024682,99540.0,99539.0,0.25307906]
[1738695765506,0.00024682,99540.0,99539.0,0.40307906]
[1738695769330,0.00024682,99540.0,99539.0,0.41312874]
[1738695770207,0.00024682,99540.0,99539.0,0.4333325]
[1738695770640,9.472e-05,99540.0,99539.0,0.4333325]
[1738695773843,0.00020152,99540.0,99539.0,0.4333325]
[1738695780011,5.2e-07,99540.0,99539.0,0.4333325]
[1738695780214,5.2e-07,99540.0,99539.0,0.45641332]
[1738695780415,5.2e-07,99540.0,99539.0,0.4563325]
[1738695780759,5.2e-07,99540.0,99539.0,0.48706018]
[1738695780962,0.0001068,99556.0,99555.0,0.30067]
[1738695781161,1e-07,99563.0,99562.0,0.2999597]
[1738695781474,6.5e-07,99563.0,99562.0,0.40234476]
[1738695781702,0.0478,99596.0,99595.0,0.150609]
[1738695782021,0.0821,99598.0,99595.0,0.150609]
[1738695782022,0.0821,99598.0,99597.0,0.150606]
[1738695782176,0.00024674,99600.0,99597.0,0.150606]
[1738695782177,0.00024674,99600.0,99599.0,0.150603]
[1738695782381,0.00024674,99600.0,99599.0,0.25298806]
[1738695783124,0.00024674,99600.0,99599.0,0.40298806]
[1738695784471,0.00024674,99600.0,99599.0,0.41318859]
[1738695792177,0.00024674,99600.0,99599.0,0.43618859]
[1738695792384,0.00024674,99600.0,99599.0,0.51668859]
[1738695792585,0.00024674,99600.0,99599.0,0.41318859]
[1738695795686,3.4e-07,99608.0,99607.0,0.300591]
[1738695795889,3.4e-07,99608.0,99607.0,0.40297606]
[1738695797221,3.4e-07,99608.0,99607.0,0.25297606]
[1738695800389,3.4e-07,99608.0,99591.0,0.01020513]
[1738695800593,3.4e-07,99608.0,99593.0,0.150612]
[1738695800788,3.4e-07,99608.0,99598.0,0.09881357]
[1738695801139,3.4e-07,99608.0,99606.0,0.150593]
[1738695801260,3.4e-07,99608.0,99603.0,0.150596]
[1738695801464,3.4e-07,99608.0,99598.0,0.09881357]
[1738695801917,3.4e-07,99608.0,99604.0,0.150595]
[1738695802315,3.4e-07,99608.0,99598.0,0.09881357]
[1738695802316,3.4e-07,99608.0,99603.0,0.150597]
[1738695802510,3.4e-07,99608.0,99604.0,0.150595]
[1738695802841,3.4e-07,99608.0,99598.0,0.09881357]
[1738695803042,3.4e-07,99608.0,99599.0,0.10238506]
[1738695803315,3.4e-07,99608.0,99590.0,0.09895351]
[1738695803316,0.1506,99602.0,99591.0,0.150616]
[1738695803640,0.200789,99607.0,99591.0,0.25300006]
[1738695803839,0.0792,99606.0,99590.0,0.00013994]
[1738695804319,0.20078734,99608.0,99590.0,0.00013994]
[1738695804320,0.0792,99597.0,99590.0,0.00013994]
[1738695804475,0.150608,99596.0,99590.0,0.00013994]
[1738695804691,0.0455,99595.0,99590.0,0.00013994]
[1738695804897,0.150616,99591.0,99590.0,0.00013994]
[1738695805072,0.228016,99591.0,99590.0,0.00013994]
[1738695805739,0.24671168,99591.0,99590.0,0.00013994]
[1738695806385,0.30361275,99591.0,99590.0,0.00013994]
[1738695806914,1.80361275,99591.0,99590.0,0.00013994]
[1738695808145,1.83354291,99591.0,99590.0,0.00013994]
[1738695809077,1.80361275,99591.0,99590.0,0.00013994]
[1738695809532,1.80361275,99591.0,99590.0,0.00036401]
[1738695810282,1.90599781,99591.0,99590.0,0.00036401]
[1738695812079,1.80361275,99591.0,99590.0,0.00036401]
[1738695812504,0.31097275,99591.0,99590.0,0.00036401]
[1738695813074,0.29227707,99591.0,99590.0,0.00036401]
[1738695813657,0.39466213,99591.0,99590.0,0.00036401]
[1738695814191,1.89466213,99591.0,99590.0,0.00036401]
[1738695814787,1.91766213,99591.0,99590.0,0.00036401]
[1738695814983,1.93635502,99591.0,99590.0,0.00036401]
[1738695815837,2.08635502,99591.0,99590.0,0.00036401]
[1738695816547,2.08635502,99591.0,99545.0,0.200913]
[1738695816548,0.0804,99554.0,99545.0,0.200913]
[1738695816770,0.0804,99554.0,99553.0,0.08106093]
[1738695817348,0.0804,99554.0,99553.0,0.00046655]
[1738695820004,0.231071,99554.0,99553.0,0.00046655]
[1738695820213,0.2825925,99554.0,99553.0,0.00046655]
[1738695820667,1.731071,99554.0,99553.0,0.00046655]
[1738695820985,1.731071,99554.0,99553.0,0.00069062]
[1738695821395,1.738471,99554.0,99553.0,0.00069062]
[1738695823247,1.86385606,99554.0,99553.0,0.00069062]
[1738695823467,1.87385606,99554.0,99553.0,0.00069062]
[1738695823670,1.99500811,99554.0,99553.0,0.00069062]
[1738695824066,2.14500811,99554.0,99553.0,0.00069062]
[1738695825066,2.14600811,99554.0,99553.0,0.00069062]
[1738695825286,2.175858,99554.0,99553.0,0.00069062]
[1738695825532,2.178858,99554.0,99553.0,0.00069062]
[1738695825735,2.235058,99554.0,99553.0,0.00069062]
[1738695825988,2.232058,99554.0,99553.0,0.00069062]
[1738695826198,2.238058,99554.0,99553.0,0.00069062]
[1738695826411,2.09516328,99554.0,99553.0,0.00069062]
[1738695826620,0.60456328,99554.0,99553.0,0.00069062]
[1738695827569,0.58716328,99554.0,99553.0,0.00069062]
[1738695827770,0.59456328,99554.0,99553.0,0.00069062]
[1738695827966,0.60456328,99554.0,99553.0,0.00069062]
[1738695828483,2.17720811,99554.0,99553.0,0.00069062]
[1738695828656,1.65425733,99554.0,99553.0,0.00069062]
[1738695828861,0.02665733,99554.0,99553.0,0.00069062]
[1738695829063,0.008,99554.0,99553.0,0.00069062]
[1738695829421,0.150669,99556.0,99553.0,0.00069062]
[1738695829626,0.150671,99555.0,99553.0,0.00069062]
[1738695829844,0.01,99569.0,99553.0,0.00069062]
[1738695830042,0.150665,99559.0,99553.0,0.00069062]
[1738695830403,0.150668,99557.0,99553.0,0.00069062]
[1738695830604,0.150671,99554.0,99553.0,0.00069062]
[1738695831280,0.150658,99563.0,99553.0,0.00069062]
[1738695831484,0.150664,99559.0,99553.0,0.00069062]
[1738695831684,0.150664,99559.0,99553.0,0.15136362]
[1738695831861,0.15,99567.0,99553.0,0.00069062]
[1738695832063,0.150671,99554.0,99553.0,0.00069062]
[1738695832359,0.200882,99561.0,99553.0,0.00069062]
[1738695832822,0.150671,99554.0,99553.0,0.00069062]
[1738695833120,0.15,99565.0,99553.0,0.00069062]
[1738695833326,0.150667,99557.0,99553.0,0.00069062]
[1738695833527,0.15067,99556.0,99553.0,0.00069062]
[1738695834147,0.351524,99566.0,99554.0,0.15067]
[1738695834381,1.65,99565.0,99553.0,0.00069062]
[1738695834728,0.150669,99556.0,99553.0,0.00069062]
[1738695835156,1.65,99565.0,99553.0,0.00069062]
[1738695835342,1.64949776,99565.0,99553.0,0.00069062]
[1738695835539,0.200888,99558.0,99553.0,0.00069062]
[1738695835747,0.150667,99557.0,99553.0,0.00069062]
[1738695836186,1.65689776,99565.0,99553.0,0.00069062]
[1738695836392,0.150671,99554.0,99553.0,0.00069062]
[1738695837380,1.730371,99554.0,99553.0,0.00069062]
[1738695838757,1.88096572,99554.0,99553.0,0.00069062]
[1738695838959,1.776471,99554.0,99553.0,0.00069062]
[1738695839337,1.778471,99554.0,99553.0,0.00069062]
[1738695839659,1.7972058,99554.0,99553.0,0.00069062]
[1738695840005,1.7992058,99554.0,99553.0,0.00069062]
[1738695840255,1.7952058,99554.0,99553.0,0.00069062]
[1738695840664,1.776471,99554.0,99553.0,0.00069062]
[1738695841928,1.78657394,99554.0,99553.0,0.00069062]
[1738695842128,2.14345372,99554.0,99553.0,0.00069062]
[1738695842468,2.16445372,99554.0,99553.0,0.00069062]
[1738695842589,2.16645372,99554.0,99553.0,0.00069062]
[1738695842784,2.063959,99554.0,99553.0,0.00069062]
[1738695843016,2.061959,99554.0,99553.0,0.00069062]
[1738695843231,2.073959,99554.0,99553.0,0.00069062]
[1738695843422,2.083959,99554.0,99553.0,0.00069062]
[1738695843845,2.10271283,99554.0,99553.0,0.00069062]
[1738695844059,2.20520755,99554.0,99553.0,0.00069062]
[1738695844514,2.20620755,99554.0,99553.0,0.00069062]
[1738695845053,2.13372285,99554.0,99553.0,0.00069062]
[1738695845466,2.152033,99554.0,99553.0,0.00069062]